[Event "SS Manhem Chess Week 2019 GM and IM tournaments"]
[Site "Molnlycke kulturhus, Biblioteksgatan 2, Molnlycke, Sweden"]
[Date "2019.08.11"]
[Round "2.8"]
[White "Jacobsen, Mikkel Manosri"]
[Black "Rydstrom, Tom"]
[Result "0-1"]
[TimeControl "90 minutes for 40 moves + 30 minutes for the rest of the game + 30 seconds per move from move one."]
[WhiteTitle "FM"]
[BlackTitle "FM"]
[WhiteFideId "1444514"]
[BlackFideId "1714830"]
[WhiteElo "2269"]
[BlackElo "2314"]

1. Nf3 {[%clk 01:30:55]} {[%emt 00:00:03]} d5 {[%clk 01:30:00]} {[%emt
00:00:55]} 2. e3 {[%clk 01:31:22]} {[%emt 00:00:09]} Nf6 {[%clk 01:28:51]}
{[%emt 00:01:39]} 3. c4 {[%clk 01:31:43]} {[%emt 00:00:08]} c6 {[%clk
01:29:13]} {[%emt 00:00:09]} 4. d4 {[%clk 01:31:42]} {[%emt 00:00:31]} e6
{[%clk 01:28:11]} {[%emt 00:01:32]} 5. b3 {[%clk 01:31:46]} {[%emt 00:00:26]}
Nbd7 {[%clk 01:28:35]} {[%emt 00:00:06]} 6. Bd3 {[%clk 01:32:09]} {[%emt
00:00:07]} Bd6 {[%clk 01:29:02]} {[%emt 00:00:03]} 7. Bb2 {[%clk 01:32:27]}
{[%emt 00:00:11]} O-O {[%clk 01:29:26]} {[%emt 00:00:08]} 8. O-O {[%clk
01:32:42]} {[%emt 00:00:15]} b6 {[%clk 01:29:39]} {[%emt 00:00:18]} 9. Nbd2
{[%clk 01:31:35]} {[%emt 00:01:35]} Bb7 {[%clk 01:29:53]} {[%emt 00:00:17]} 10.
Qe2 {[%clk 01:31:22]} {[%emt 00:00:43]} c5 {[%clk 01:29:36]} {[%emt 00:00:48]}
11. cxd5 {[%clk 01:28:10]} {[%emt 00:03:41]} exd5 {[%clk 01:29:25]} {[%emt
00:00:41]} 12. Rfd1 {[%clk 01:28:34]} {[%emt 00:00:05]} Re8 {[%clk 01:28:23]}
{[%emt 00:01:33]} 13. Bb5 {[%clk 01:22:29]} {[%emt 00:06:35]} a6 {[%clk
01:22:43]} {[%emt 00:06:10]} 14. dxc5 {[%clk 01:22:32]} {[%emt 00:00:27]} bxc5
{[%clk 01:22:40]} {[%emt 00:00:33]} 15. Bxf6 {[%clk 01:19:37]} {[%emt
00:03:25]} gxf6 {[%clk 01:23:06]} {[%emt 00:00:05]} 16. Ba4 {[%clk 01:19:33]}
{[%emt 00:00:34]} Kh8 {[%clk 01:16:17]} {[%emt 00:07:19]} 17. Qd3 {[%clk
01:16:33]} {[%emt 00:03:30]} Rg8 {[%clk 01:12:20]} {[%emt 00:04:27]} 18. Bxd7
{[%clk 00:47:18]} {[%emt 00:29:45]} Qxd7 {[%clk 01:12:46]} {[%emt 00:00:05]} 19.
g3 {[%clk 00:47:34]} {[%emt 00:00:13]} Qg4 {[%clk 00:59:29]} {[%emt 00:13:47]}
20. a4 {[%clk 00:41:50]} {[%emt 00:06:14]} h5 {[%clk 00:49:53]} {[%emt
00:10:06]} 21. a5 {[%clk 00:37:41]} {[%emt 00:04:39]} h4 {[%clk 00:42:35]}
{[%emt 00:07:48]} 22. Ra4 {[%clk 00:37:37]} {[%emt 00:00:34]} d4 {[%clk
00:39:46]} {[%emt 00:03:19]} 23. exd4 {[%clk 00:33:53]} {[%emt 00:04:14]} hxg3
{[%clk 00:39:03]} {[%emt 00:01:12]} 24. hxg3 {[%clk 00:34:01]} {[%emt
00:00:22]} Bxg3 {[%clk 00:37:23]} {[%emt 00:02:11]} 25. d5 {[%clk 00:33:50]}
{[%emt 00:00:41]} Qh3 {[%clk 00:26:02]} {[%emt 00:11:51]} 26. fxg3 {[%clk
00:32:05]} {[%emt 00:02:15]} Rxg3+ {[%clk 00:24:10]} {[%emt 00:02:22]} 27. Kf2
{[%clk 00:32:33]} {[%emt 00:00:02]} Rg2+ {[%clk 00:23:30]} {[%emt 00:01:10]} 28.
Ke3 {[%clk 00:33:01]} {[%emt 00:00:02]} Re8+ {[%clk 00:23:20]} {[%emt
00:00:40]} 29. Qe4 {[%clk 00:33:20]} {[%emt 00:00:11]} Qd7 {[%clk 00:15:41]}
{[%emt 00:08:09]} 30. Qxe8+ {[%clk 00:32:51]} {[%emt 00:00:58]} Qxe8+ {[%clk
00:15:16]} {[%emt 00:00:56]} 31. Re4 {[%clk 00:33:14]} {[%emt 00:00:06]} Qb5
{[%clk 00:12:38]} {[%emt 00:03:08]} 32. Nc4 {[%clk 00:30:59]} {[%emt 00:02:45]}
f5 {[%clk 00:11:15]} {[%emt 00:01:54]} 33. Rh4+ {[%clk 00:28:10]} {[%emt
00:03:19]} Kg7 {[%clk 00:08:08]} {[%emt 00:03:37]} 34. Rd3 {[%clk 00:26:53]}
{[%emt 00:01:47]} Qe8+ {[%clk 00:07:15]} {[%emt 00:01:23]} 35. Nfe5 {[%clk
00:27:21]} {[%emt 00:00:02]} Rg3+ {[%clk 00:04:59]} {[%emt 00:02:46]} 36. Kf4
{[%clk 00:27:15]} {[%emt 00:00:36]} Rxd3 {[%clk 00:05:05]} {[%emt 00:00:25]} 37.
Nd6 {[%clk 00:27:20]} {[%emt 00:00:24]} Rd4+ {[%clk 00:05:09]} {[%emt
00:00:27]} 0-1

[Event "SS Manhem Chess Week 2019 GM and IM tournaments"]
[Site "Molnlycke kulturhus, Biblioteksgatan 2, Molnlycke, Sweden"]
[Date "2019.08.11"]
[Round "2.9"]
[White "Ornstein, Axel"]
[Black "Kucuksari, Kaan"]
[Result "1/2-1/2"]
[TimeControl "90 minutes for 40 moves + 30 minutes for the rest of the game + 30 seconds per move from move one."]
[WhiteTitle "IM"]
[BlackTitle "FM"]
[WhiteFideId "1700111"]
[BlackFideId "6380166"]
[WhiteElo "2311"]
[BlackElo "2286"]

1. d4 {[%clk 01:30:58]} f5 {[%clk 01:28:16]} {[%emt 00:02:45]} 2. c4 {[%clk
01:29:44]} {[%emt 00:01:45]} Nf6 {[%clk 01:28:39]} {[%emt 00:00:07]} 3. Nc3
{[%clk 01:30:09]} {[%emt 00:00:04]} g6 {[%clk 01:29:04]} {[%emt 00:00:05]} 4.
f3 {[%clk 01:27:23]} {[%emt 00:03:16]} Bg7 {[%clk 01:19:04]} {[%emt 00:10:30]}
5. e4 {[%clk 01:27:38]} {[%emt 00:00:15]} d6 {[%clk 01:16:20]} {[%emt
00:03:14]} 6. Be3 {[%clk 01:22:17]} {[%emt 00:05:50]} O-O {[%clk 01:13:39]}
{[%emt 00:03:11]} 7. e5 {[%clk 01:22:00]} {[%emt 00:00:47]} Nh5 {[%clk
01:09:49]} {[%emt 00:04:20]} 8. f4 {[%clk 01:21:12]} {[%emt 00:01:18]} c5
{[%clk 01:08:26]} {[%emt 00:01:53]} 9. dxc5 {[%clk 01:15:55]} {[%emt 00:05:47]}
dxe5 {[%clk 01:05:52]} {[%emt 00:03:04]} 10. Qxd8 {[%clk 01:14:37]} {[%emt
00:01:47]} Rxd8 {[%clk 01:06:16]} {[%emt 00:00:06]} 11. fxe5 {[%clk 01:14:55]}
{[%emt 00:00:12]} Bxe5 {[%clk 00:55:08]} {[%emt 00:11:39]} 12. Nd5 {[%clk
01:15:02]} {[%emt 00:00:23]} Nc6 {[%clk 00:53:08]} {[%emt 00:02:29]} 13. O-O-O
{[%clk 01:14:50]} {[%emt 00:00:42]} e6 {[%clk 00:47:48]} {[%emt 00:05:51]} 14.
Ne7+ {[%clk 01:14:37]} {[%emt 00:00:41]} Kf7 {[%clk 00:45:53]} {[%emt
00:02:26]} 15. Rxd8 {[%clk 01:14:59]} {[%emt 00:00:08]} Nxd8 {[%clk 00:46:19]}
{[%emt 00:00:04]} 16. Nxc8 {[%clk 01:15:12]} {[%emt 00:00:16]} Rxc8 {[%clk
00:46:44]} {[%emt 00:00:06]} 17. Nf3 {[%clk 01:15:38]} {[%emt 00:00:04]} Bf4
{[%clk 00:44:41]} {[%emt 00:02:33]} 18. Bxf4 {[%clk 01:15:55]} {[%emt
00:00:14]} Nxf4 {[%clk 00:45:09]} {[%emt 00:00:02]} 19. g3 {[%clk 01:16:14]}
{[%emt 00:00:11]} Nh5 {[%clk 00:45:37]} {[%emt 00:00:02]} 20. b4 {[%clk
00:46:18]} {[%emt 00:30:24]} Kf6 {[%clk 00:33:10]} {[%emt 00:12:58]} 21. Be2
{[%clk 00:24:31]} {[%emt 00:22:17]} a5 {[%clk 00:30:24]} {[%emt 00:03:17]} 22.
a3 {[%clk 00:22:08]} {[%emt 00:02:54]} axb4 {[%clk 00:24:21]} {[%emt 00:06:33]}
23. axb4 {[%clk 00:22:36]} {[%emt 00:00:02]} Nc6 {[%clk 00:24:46]} {[%emt
00:00:05]} 24. b5 {[%clk 00:22:56]} {[%emt 00:00:10]} Na5 {[%clk 00:09:19]}
{[%emt 00:15:56]} 25. c6 {[%clk 00:23:14]} {[%emt 00:00:12]} bxc6 {[%clk
00:09:48]} {[%emt 00:00:02]} 26. Kb2 {[%clk 00:23:34]} {[%emt 00:00:08]} Nxc4+
{[%clk 00:08:10]} {[%emt 00:02:10]} 27. Bxc4 {[%clk 00:23:47]} {[%emt
00:00:17]} cxb5 {[%clk 00:08:38]} {[%emt 00:00:02]} 28. Be2 {[%clk 00:14:43]}
{[%emt 00:09:34]} e5 {[%clk 00:08:54]} {[%emt 00:00:14]} 29. Ra1 {[%clk
00:14:44]} {[%emt 00:00:28]} Rc6 {[%clk 00:06:41]} {[%emt 00:02:43]} 30. Bxb5
{[%clk 00:13:16]} {[%emt 00:01:57]} Rb6 {[%clk 00:07:10]} {[%emt 00:00:02]} 31.
Ra6 {[%clk 00:13:38]} {[%emt 00:00:08]} Rxa6 {[%clk 00:07:37]} {[%emt
00:00:03]} 32. Bxa6 {[%clk 00:14:02]} {[%emt 00:00:05]} e4 {[%clk 00:04:25]}
{[%emt 00:03:42]} 33. Nd2 {[%clk 00:09:31]} {[%emt 00:05:01]} g5 {[%clk
00:00:56]} {[%emt 00:03:59]} 34. Kc3 {[%clk 00:07:15]} {[%emt 00:02:46]} e3
{[%clk 00:00:39]} {[%emt 00:00:47]} 35. Nf3 {[%clk 00:03:04]} {[%emt 00:04:40]}
g4 {[%clk 00:00:52]} {[%emt 00:00:18]} 36. Ne1 {[%clk 00:00:48]} {[%emt
00:02:47]} f4 {[%clk 00:00:37]} {[%emt 00:00:45]} 37. gxf4 {[%clk 00:01:15]}
{[%emt 00:00:02]} Nxf4 {[%clk 00:00:41]} {[%emt 00:00:26]} 38. Kd4 {[%clk
00:01:37]} {[%emt 00:00:08]} e2 {[%clk 00:00:38]} {[%emt 00:00:34]} 39. Ke3
{[%clk 00:02:02]} {[%emt 00:00:04]} Kg5 {[%clk 00:01:06]} {[%emt 00:00:02]} 40.
Bxe2 {[%clk 00:02:25]} {[%emt 00:00:07]} Nxe2 {[%clk 00:00:35]} {[%emt
00:01:01]} 41. Kxe2 {[%clk 00:02:30]} {[%emt 00:00:26]} 1/2-1/2

[Event "SS Manhem Chess Week 2019 GM and IM tournaments"]
[Site "Molnlycke kulturhus, Biblioteksgatan 2, Molnlycke, Sweden"]
[Date "2019.08.11"]
[Round "2.10"]
[White "Renman, Nils-Gustaf"]
[Black "Pham, Bich Ngoc"]
[Result "1/2-1/2"]
[TimeControl "90 minutes for 40 moves + 30 minutes for the rest of the game + 30 seconds per move from move one."]
[WhiteTitle "IM"]
[BlackTitle "WIM"]
[WhiteFideId "1700367"]
[BlackFideId "12401285"]
[WhiteElo "2346"]
[BlackElo "2176"]

1. d4 {[%clk 01:30:56]} {[%emt 00:00:03]} f5 {[%clk 01:28:08]} {[%emt
00:02:52]} 2. c4 {[%clk 01:30:45]} {[%emt 00:00:41]} Nf6 {[%clk 01:28:28]}
{[%emt 00:00:10]} 3. g3 {[%clk 01:30:48]} {[%emt 00:00:28]} g6 {[%clk
01:28:45]} {[%emt 00:00:13]} 4. Bg2 {[%clk 01:31:03]} {[%emt 00:00:14]} Bg7
{[%clk 01:29:07]} {[%emt 00:00:08]} 5. Nc3 {[%clk 01:31:14]} {[%emt 00:00:20]}
O-O {[%clk 01:29:10]} {[%emt 00:00:27]} 6. Nf3 {[%clk 01:31:30]} {[%emt
00:00:14]} d6 {[%clk 01:29:26]} {[%emt 00:00:13]} 7. O-O {[%clk 01:31:45]}
{[%emt 00:00:15]} c6 {[%clk 01:29:10]} {[%emt 00:00:46]} 8. Re1 {[%clk
01:24:38]} {[%emt 00:07:38]} Na6 {[%clk 01:29:24]} {[%emt 00:00:16]} 9. a3
{[%clk 01:21:11]} {[%emt 00:03:57]} Qc7 {[%clk 01:27:00]} {[%emt 00:02:53]} 10.
e4 {[%clk 01:19:23]} {[%emt 00:02:19]} fxe4 {[%clk 01:26:50]} {[%emt 00:00:40]}
11. Nxe4 {[%clk 01:19:34]} {[%emt 00:00:19]} Nxe4 {[%clk 01:27:05]} {[%emt
00:00:15]} 12. Rxe4 {[%clk 01:19:56]} {[%emt 00:00:08]} Bf5 {[%clk 01:27:13]}
{[%emt 00:00:22]} 13. Re3 {[%clk 01:13:38]} {[%emt 00:06:49]} e5 {[%clk
01:25:23]} {[%emt 00:02:19]} 14. dxe5 {[%clk 00:45:37]} {[%emt 00:28:31]} dxe5
{[%clk 01:25:42]} {[%emt 00:00:10]} 15. Ng5 {[%clk 00:45:33]} {[%emt 00:00:34]}
Rad8 {[%clk 01:24:00]} {[%emt 00:02:12]} 16. Qe2 {[%clk 00:45:39]} {[%emt
00:00:25]} Nc5 {[%clk 01:23:38]} {[%emt 00:00:51]} 17. g4 {[%clk 00:43:55]}
{[%emt 00:02:13]} Bd3 {[%clk 01:10:58]} {[%emt 00:13:11]} 18. Rxd3 {[%clk
00:44:15]} {[%emt 00:00:11]} Nxd3 {[%clk 00:55:56]} {[%emt 00:15:31]} 19. Ne6
{[%clk 00:44:34]} {[%emt 00:00:12]} Qb6 {[%clk 00:45:48]} {[%emt 00:10:37]} 20.
c5 {[%clk 00:35:38]} {[%emt 00:09:27]} Qb3 {[%clk 00:40:28]} {[%emt 00:05:50]}
21. Nxf8 {[%clk 00:34:52]} {[%emt 00:01:16]} Bxf8 {[%clk 00:39:01]} {[%emt
00:01:57]} 22. Be4 {[%clk 00:21:14]} {[%emt 00:14:09]} Bxc5 {[%clk 00:34:57]}
{[%emt 00:04:34]} 23. Be3 {[%clk 00:20:37]} {[%emt 00:01:07]} Nf4 {[%clk
00:29:35]} {[%emt 00:05:52]} 24. Bxf4 {[%clk 00:14:39]} {[%emt 00:06:28]} exf4
{[%clk 00:29:57]} {[%emt 00:00:07]} 25. Rc1 {[%clk 00:11:17]} {[%emt 00:03:52]}
Bd4 {[%clk 00:29:59]} {[%emt 00:00:28]} 26. Rc2 {[%clk 00:09:43]} {[%emt
00:02:05]} Bf6 {[%clk 00:23:13]} {[%emt 00:07:16]} 27. Kg2 {[%clk 00:08:44]}
{[%emt 00:01:30]} Kg7 {[%clk 00:21:50]} {[%emt 00:01:53]} 28. Qf3 {[%clk
00:07:52]} {[%emt 00:01:22]} Qxf3+ {[%clk 00:19:32]} {[%emt 00:02:48]} 29. Kxf3
{[%clk 00:08:21]} {[%emt 00:00:02]} Be5 {[%clk 00:19:18]} {[%emt 00:00:43]} 30.
Ke2 {[%clk 00:04:25]} {[%emt 00:04:26]} Kf6 {[%clk 00:16:19]} {[%emt 00:03:29]}
31. h4 {[%clk 00:04:13]} {[%emt 00:00:42]} Rd7 {[%clk 00:15:01]} {[%emt
00:01:49]} 32. b3 {[%clk 00:04:29]} {[%emt 00:00:14]} Bd6 {[%clk 00:14:24]}
{[%emt 00:01:06]} 33. Rd2 {[%clk 00:03:11]} {[%emt 00:01:48]} Ke6 {[%clk
00:13:26]} {[%emt 00:01:27]} 34. a4 {[%clk 00:03:26]} {[%emt 00:00:16]} a5
{[%clk 00:10:12]} {[%emt 00:03:43]} 35. Bd3 {[%clk 00:02:13]} {[%emt 00:01:44]}
Kf6 {[%clk 00:05:01]} {[%emt 00:05:42]} 36. g5+ {[%clk 00:01:59]} {[%emt
00:00:43]} Kg7 {[%clk 00:03:58]} {[%emt 00:01:33]} 37. Bc4 {[%clk 00:02:23]}
{[%emt 00:00:06]} h6 {[%clk 00:04:05]} {[%emt 00:00:23]} 38. Kf3 {[%clk
00:02:14]} {[%emt 00:00:39]} hxg5 {[%clk 00:03:48]} {[%emt 00:00:47]} 39. hxg5
{[%clk 00:02:43]} {[%emt 00:00:02]} Rd8 {[%clk 00:03:40]} {[%emt 00:00:38]} 40.
Rd1 {[%clk 00:02:16]} {[%emt 00:00:57]} Rd7 {[%clk 00:03:53]} {[%emt 00:00:15]}
1/2-1/2

[Event "SS Manhem Chess Week 2019 GM and IM tournaments"]
[Site "Molnlycke kulturhus, Biblioteksgatan 2, Molnlycke, Sweden"]
[Date "2019.08.11"]
[Round "3.6"]
[White "Rydstrom, Tom"]
[Black "Renman, Nils-Gustaf"]
[Result "0-1"]
[TimeControl "90 minutes for 40 moves + 30 minutes for the rest of the game + 30 seconds per move from move one."]
[WhiteTitle "FM"]
[BlackTitle "IM"]
[WhiteFideId "1714830"]
[BlackFideId "1700367"]
[WhiteElo "2314"]
[BlackElo "2346"]

1. e4 {[%clk 01:28:11]} {[%emt 00:02:48]} e6 {[%clk 01:30:55]} {[%emt
00:00:06]} 2. d4 {[%clk 01:28:12]} {[%emt 00:00:29]} d5 {[%clk 01:31:20]}
{[%emt 00:00:05]} 3. Nc3 {[%clk 01:28:39]} {[%emt 00:00:03]} Nf6 {[%clk
01:31:43]} {[%emt 00:00:07]} 4. e5 {[%clk 01:29:04]} {[%emt 00:00:05]} Nfd7
{[%clk 01:32:08]} {[%emt 00:00:05]} 5. f4 {[%clk 01:29:29]} {[%emt 00:00:04]}
c5 {[%clk 01:32:35]} {[%emt 00:00:04]} 6. Nf3 {[%clk 01:29:56]} {[%emt
00:00:03]} Nc6 {[%clk 01:33:00]} {[%emt 00:00:05]} 7. Be3 {[%clk 01:30:23]}
{[%emt 00:00:03]} a6 {[%clk 01:33:21]} {[%emt 00:00:09]} 8. Qd2 {[%clk
01:30:38]} {[%emt 00:00:14]} b5 {[%clk 01:33:46]} {[%emt 00:00:06]} 9. Nd1
{[%clk 01:30:38]} {[%emt 00:00:29]} Qb6 {[%clk 01:27:03]} {[%emt 00:07:13]} 10.
c3 {[%clk 01:30:56]} {[%emt 00:00:12]} a5 {[%clk 01:25:05]} {[%emt 00:02:29]}
11. Bd3 {[%clk 01:30:57]} {[%emt 00:00:29]} b4 {[%clk 01:25:21]} {[%emt
00:00:14]} 12. O-O {[%clk 01:29:25]} {[%emt 00:02:02]} Ba6 {[%clk 01:22:29]}
{[%emt 00:03:22]} 13. Nf2 {[%clk 01:29:35]} {[%emt 00:00:19]} Bxd3 {[%clk
01:17:30]} {[%emt 00:05:29]} 14. Nxd3 {[%clk 01:30:01]} {[%emt 00:00:04]} c4
{[%clk 01:16:05]} {[%emt 00:01:55]} 15. Nf2 {[%clk 01:27:09]} {[%emt 00:03:22]}
a4 {[%clk 01:09:06]} {[%emt 00:07:29]} 16. cxb4 {[%clk 01:11:10]} {[%emt
00:16:29]} Bxb4 {[%clk 01:07:58]} {[%emt 00:01:38]} 17. Qc2 {[%clk 01:11:36]}
{[%emt 00:00:03]} g6 {[%clk 01:07:30]} {[%emt 00:00:57]} 18. g4 {[%clk
01:06:48]} {[%emt 00:05:18]} O-O {[%clk 00:57:25]} {[%emt 00:10:36]} 19. g5
{[%clk 01:00:48]} {[%emt 00:06:30]} Rfb8 {[%clk 00:55:56]} {[%emt 00:01:59]} 20.
Ng4 {[%clk 00:57:38]} {[%emt 00:03:40]} Bf8 {[%clk 00:54:30]} {[%emt 00:01:56]}
21. Rab1 {[%clk 00:51:36]} {[%emt 00:06:32]} Nb4 {[%clk 00:47:00]} {[%emt
00:08:00]} 22. Qf2 {[%clk 00:38:25]} {[%emt 00:13:41]} Nxa2 {[%clk 00:45:57]}
{[%emt 00:01:34]} 23. Qh4 {[%clk 00:36:22]} {[%emt 00:02:33]} Nc3 {[%clk
00:18:14]} {[%emt 00:28:13]} 24. Rbe1 {[%clk 00:09:42]} {[%emt 00:27:10]} Ne4
{[%clk 00:15:34]} {[%emt 00:03:11]} 25. f5 {[%clk 00:10:11]} {[%emt 00:00:01]}
exf5 {[%clk 00:14:56]} {[%emt 00:01:07]} 26. Nf6+ {[%clk 00:10:40]} Ndxf6
{[%clk 00:14:59]} {[%emt 00:00:28]} 27. gxf6 {[%clk 00:11:07]} {[%emt
00:00:02]} Re8 {[%clk 00:04:43]} {[%emt 00:10:47]} 28. Bh6 {[%clk 00:10:35]}
{[%emt 00:01:02]} Rxe5 {[%clk 00:02:57]} {[%emt 00:02:16]} 29. Bxf8 {[%clk
00:09:25]} {[%emt 00:01:40]} Rxf8 {[%clk 00:02:20]} {[%emt 00:01:07]} 30. Qh6
{[%clk 00:09:33]} {[%emt 00:00:22]} Nxf6 {[%clk 00:02:31]} {[%emt 00:00:19]} 31.
Nxe5 {[%clk 00:04:48]} {[%emt 00:05:14]} Qxd4+ {[%clk 00:02:54]} {[%emt
00:00:07]} 32. Qe3 {[%clk 00:04:37]} {[%emt 00:00:41]} Qxb2 {[%clk 00:02:30]}
{[%emt 00:00:54]} 33. Rxf5 {[%clk 00:02:38]} {[%emt 00:02:29]} Ne4 {[%clk
00:02:16]} {[%emt 00:00:44]} 34. Nxc4 {[%clk 00:00:36]} {[%emt 00:02:32]} dxc4
{[%clk 00:02:08]} {[%emt 00:00:38]} 35. Rff1 {[%clk 00:00:55]} {[%emt
00:00:11]} f5 {[%clk 00:01:46]} {[%emt 00:00:52]} 36. Rb1 {[%clk 00:01:00]}
{[%emt 00:00:25]} Qd2 {[%clk 00:01:46]} {[%emt 00:00:31]} 37. Qa7 {[%clk
00:00:47]} {[%emt 00:00:43]} Nc3 {[%clk 00:01:10]} {[%emt 00:01:06]} 38. Rb7
{[%clk 00:00:34]} {[%emt 00:00:43]} Ne2+ {[%clk 00:00:48]} {[%emt 00:00:52]} 39.
Kg2 {[%clk 00:00:32]} {[%emt 00:00:32]} Nf4+ {[%clk 00:00:38]} {[%emt
00:00:40]} 40. Kf3 {[%clk 00:00:33]} {[%emt 00:00:29]} Qe2+ {[%clk 00:00:48]}
{[%emt 00:00:20]} 41. Kxf4 {[%clk 00:29:56]} {[%emt 00:01:07]} Qxf1+ {[%clk
00:30:49]} {[%emt 00:00:28]} 42. Ke5 {[%clk 00:29:27]} {[%emt 00:00:59]} Qe2+
{[%clk 00:30:10]} {[%emt 00:01:10]} 43. Kd6 {[%clk 00:26:37]} {[%emt 00:03:20]}
Rd8+ {[%clk 00:29:16]} {[%emt 00:01:23]} 44. Kc6 {[%clk 00:26:00]} {[%emt
00:01:08]} Qe5 {[%clk 00:27:22]} {[%emt 00:02:23]} 0-1

[Event "SS Manhem Chess Week 2019 GM and IM tournaments"]
[Site "Molnlycke kulturhus, Biblioteksgatan 2, Molnlycke, Sweden"]
[Date "2019.08.11"]
[Round "3.7"]
[White "Borsuk, Konstantin"]
[Black "Malmstig, Erik"]
[Result "1-0"]
[TimeControl "90 minutes for 40 moves + 30 minutes for the rest of the game + 30 seconds per move from move one."]
[WhiteTitle "FM"]
[BlackTitle "FM"]
[WhiteFideId "14113406"]
[BlackFideId "1702866"]
[WhiteElo "2372"]
[BlackElo "2335"]

1. d4 {[%clk 01:30:49]} {[%emt 00:00:10]} Nf6 {[%clk 01:30:51]} {[%emt
00:00:08]} 2. Nf3 {[%clk 01:30:08]} {[%emt 00:01:13]} c5 {[%clk 01:30:31]}
{[%emt 00:00:51]} 3. d5 {[%clk 01:27:56]} {[%emt 00:02:41]} g6 {[%clk
01:30:49]} {[%emt 00:00:12]} 4. Nc3 {[%clk 01:27:23]} {[%emt 00:01:03]} d6
{[%clk 01:30:41]} {[%emt 00:00:38]} 5. e4 {[%clk 01:27:26]} {[%emt 00:00:27]}
a6 {[%clk 01:30:40]} {[%emt 00:00:31]} 6. a4 {[%clk 01:27:15]} {[%emt
00:00:41]} Bg4 {[%clk 01:31:02]} {[%emt 00:00:08]} 7. Be2 {[%clk 01:11:05]}
{[%emt 00:16:40]} Bxf3 {[%clk 01:28:56]} {[%emt 00:02:36]} 8. Bxf3 {[%clk
01:11:25]} {[%emt 00:00:09]} Nbd7 {[%clk 01:29:10]} {[%emt 00:00:17]} 9. O-O
{[%clk 01:11:15]} {[%emt 00:00:39]} Bg7 {[%clk 01:29:19]} {[%emt 00:00:21]} 10.
Be2 {[%clk 01:10:39]} {[%emt 00:01:07]} O-O {[%clk 01:28:59]} {[%emt 00:00:50]}
11. Ra3 {[%clk 01:09:50]} {[%emt 00:01:19]} Qc7 {[%clk 01:26:54]} {[%emt
00:02:35]} 12. a5 {[%clk 01:03:05]} {[%emt 00:07:14]} Rfc8 {[%clk 01:24:33]}
{[%emt 00:02:51]} 13. Be3 {[%clk 01:00:06]} {[%emt 00:03:29]} Rab8 {[%clk
01:23:51]} {[%emt 00:01:12]} 14. Qd2 {[%clk 00:58:57]} {[%emt 00:01:39]} Qd8
{[%clk 01:20:06]} {[%emt 00:04:16]} 15. f3 {[%clk 00:49:28]} {[%emt 00:09:59]}
Qf8 {[%clk 01:18:42]} {[%emt 00:01:53]} 16. f4 {[%clk 00:41:03]} {[%emt
00:08:56]} Rd8 {[%clk 01:12:33]} {[%emt 00:06:39]} 17. g4 {[%clk 00:38:20]}
{[%emt 00:03:12]} Ne8 {[%clk 01:10:16]} {[%emt 00:02:47]} 18. Na4 {[%clk
00:31:19]} {[%emt 00:07:32]} Nc7 {[%clk 01:08:03]} {[%emt 00:02:43]} 19. c3
{[%clk 00:31:20]} {[%emt 00:00:29]} Kh8 {[%clk 00:54:19]} {[%emt 00:14:14]} 20.
b4 {[%clk 00:30:27]} {[%emt 00:01:23]} Nb5 {[%clk 00:48:40]} {[%emt 00:06:09]}
21. Rb3 {[%clk 00:29:57]} {[%emt 00:01:00]} Nf6 {[%clk 00:46:57]} {[%emt
00:02:13]} 22. Qd3 {[%clk 00:25:19]} {[%emt 00:05:08]} c4 {[%clk 00:31:44]}
{[%emt 00:15:43]} 23. Qxc4 {[%clk 00:25:35]} {[%emt 00:00:14]} e6 {[%clk
00:32:08]} {[%emt 00:00:06]} 24. Bf3 {[%clk 00:19:25]} {[%emt 00:06:40]} exd5
{[%clk 00:30:38]} {[%emt 00:01:59]} 25. exd5 {[%clk 00:19:49]} {[%emt
00:00:07]} Re8 {[%clk 00:24:19]} {[%emt 00:06:49]} 26. Qd3 {[%clk 00:18:55]}
{[%emt 00:01:25]} Re7 {[%clk 00:17:03]} {[%emt 00:07:45]} 27. Bf2 {[%clk
00:17:07]} {[%emt 00:02:17]} g5 {[%clk 00:16:46]} {[%emt 00:00:47]} 28. c4
{[%clk 00:16:50]} {[%emt 00:00:47]} Nc7 {[%clk 00:16:46]} {[%emt 00:00:30]} 29.
fxg5 {[%clk 00:16:53]} {[%emt 00:00:28]} Nd7 {[%clk 00:17:00]} {[%emt
00:00:14]} 30. Nb6 {[%clk 00:11:56]} {[%emt 00:05:28]} Ne5 {[%clk 00:16:05]}
{[%emt 00:01:25]} 31. Qf5 {[%clk 00:12:23]} {[%emt 00:00:03]} Rd8 {[%clk
00:11:02]} {[%emt 00:05:33]} 32. h4 {[%clk 00:11:31]} {[%emt 00:01:22]} Na8
{[%clk 00:08:15]} {[%emt 00:03:17]} 33. Be4 {[%clk 00:09:32]} {[%emt 00:02:29]}
Qg8 {[%clk 00:06:05]} {[%emt 00:02:40]} 34. h5 {[%clk 00:08:34]} {[%emt
00:01:29]} Nd7 {[%clk 00:01:54]} {[%emt 00:04:42]} 35. Nxd7 {[%clk 00:07:33]}
{[%emt 00:01:30]} Rxe4 {[%clk 00:01:26]} {[%emt 00:00:57]} 36. Qxe4 {[%clk
00:04:57]} {[%emt 00:03:06]} Rxd7 {[%clk 00:01:47]} {[%emt 00:00:10]} 37. Bd4
{[%clk 00:03:58]} {[%emt 00:01:28]} 1-0